Cogmind - Beta 15 @@@ ROGUE MODE // 2025.05.24 @ 12:41:11 Player: Windjigo Result: Destroyed by Piercing Trap Performance ------------- Evolutions (0) 0 Regions Visited (2) 400 Robots Destroyed (8) 40 Value Destroyed (280) 280 Prototype IDs (1) 20 Alien Tech Used (0) 0 Bonus (40) 40 TOTAL SCORE: 780 Bonus ------- Follower Combat Kills 40 Cogmind --------- Core Integrity 0/250 Matter 300/300 Energy 99/100 System Corruption 0% Temperature Cool (0) Movement Rolling (115) Ox1 Location -10/Subcaves Parts ------- > --- POWER (1) -------- (None) > --- PROPULSION (2) --- Compact Wheel > --- UTILITY (2) ------ Small Storage Unit V3-11A's Pendant > --- WEAPON (2) ------- Subdweller Beam Cannon Subdweller Machine Gun > --- INVENTORY (8) ---- Ion Engine Disposable Heat Sink Makeshift Light Armor Plating Subdweller Beam Cannon Grenade Launcher Enhanced Flamer Makeshift Hammer Shrapnel Trap Peak State ------------ > --- POWER ------------ Subdweller Power Source > --- PROPULSION ------- Subdweller Monowheel Subdweller Monowheel > --- UTILITY ---------- Small Storage Unit Makeshift Light Armor Plating > --- WEAPON ----------- Subdweller Machine Gun Subdweller Machine Gun > --- INVENTORY -------- Ion Engine Subdweller Power Source Compact Wheel Disposable Heat Sink Subdweller Beam Cannon Grenade Launcher Makeshift Hammer Shrapnel Trap [Rating: 16] Favorites ----------- Power Subdweller Power Source Engine Subdweller Power Source Propulsion Compact Wheel Wheel Compact Wheel Utility Small Storage Unit Device V3-11A's Pendant Storage Small Storage Unit Protection Makeshift Light Armor Plating Weapon Subdweller Machine Gun Energy Gun Small Laser Energy Cannon Subdweller Beam Cannon Ballistic Gun Subdweller Machine Gun Launcher Grenade Launcher Build | -11 -10 -10 ------- Run | Yrd Mat Sub Slots Evolved . | . . . Power . | . . . Propulsion . | . . . Utility . | . . . Weapon . | . . . Parts Attached 21 | 6 . 15 Power 2 | 1 . 1 Engine 2 | 1 . 1 Core . | . . . Reactor . | . . . Propulsion 5 | 2 . 3 Treads . | . . . Leg . | . . . Wheel 5 | 2 . 3 Hover . | . . . Flight . | . . . Utility 4 | 1 . 3 Device 2 | . . 2 Storage 1 | 1 . . Processor . | . . . Hackware . | . . . Protection 1 | . . 1 Artifact . | . . . Weapon 10 | 2 . 8 Energy Gun 1 | 1 . . Energy Cannon 1 | . . 1 Ballistic Gun 6 | 1 . 5 Ballistic Cannon . | . . . Launcher 2 | . . 2 Special Weapon . | . . . Impact Weapon . | . . . Slashing Weapon . | . . . Piercing Weapon . | . . . Special Melee Weapon . | . . . Unidentified Prototypes 1 | . . 1 Parts Lost 5 | . . 5 Power 2 | . . 2 Propulsion 2 | . . 2 Utility . | . . . Weapon 1 | . . 1 Highest Loss Streak 2 | . . 2 To Critical Strikes . | . . . Average Backups 6 | 2 2 6 Power 1 | 1 1 1 Propulsion . | 1 . . Utility 1 | . . 1 Weapon 3 | . 1 3 Tool/Special . | . . . Unused Backups 12 | . . 12 Power 4 | . . 4 Propulsion . | . . . Utility 2 | . . 2 Weapon 6 | . . 6 Tool/Special . | . . . Average Slot Usage (%) 86 | . 85 86 Engine 13 | . 14 13 Wheel 20 | . 28 19 Device 8 | . . 9 Storage 14 | . 14 14 Protection 1 | . . 1 Energy Gun 2 | . 14 2 Energy Cannon 5 | . . 5 Ballistic Gun 17 | . 14 18 Launcher 1 | . . 1 Peak Build Rating 16 | 6 6 16 Average Rating 10 | 2 6 11 On Entrance 4 | . 6 6 Naked Turns . | . . . Heaviest Build 23 | 12 12 23 Greatest Support 36 | 26 26 36 Greatest Overweight (x) 1 | . . 1 Average Overweight (x) . | . . . Largest Inventory Capacity 8 | 8 8 8 Average Capacity 7 | 6 8 8 Most Carried 8 | 5 3 8 Average Carried 7 | 2 2 7 Final Capacity 8 | 8 8 8 Final Carried 8 | 1 3 8 Class Distribution -------------------- 100% | Mutant Dominant Class ---------------- Mutant | -10/Materials Mutant | -10/Subcaves Resources | -11 -10 -10 ----------- Run | Yrd Mat Sub Matter Collected 598 | 181 . 417 Remotely . | . . . Salvage Created 190 | . . 190 Parts 19 | . . 19 Haulers Intercepted . | . . . Recyclers Shooed . | . . . Parts Field Recycled . | . . . Retrieved Matter . | . . . Parts Self-Destructed 15 | . . 15 Prevented . | . . . Kills | -11 -10 -10 ------- Run | Yrd Mat Sub Combat Hostiles Destroyed 7 | . . 7 Guns 4 | . . 4 AOE 3 | . . 3 Classes Destroyed 3 | . . 3 Turret 1 | . . 1 Swarmer 1 | . . 1 Subdweller 6 | . . 6 Best Kill Streak 2 | . . 2 Combat Bots Only 2 | . . 2 Max Kills in Single Turn 1 | . . 1 Gunslinging . | . . . Exploded 1 | . . 1 Melee . | . . . Uniques/NPCs Destroyed . | . . . Combat | -11 -10 -10 -------- Run | Yrd Mat Sub Hostile Shots Fired 68 | . 15 53 Missed 18 | . 4 14 Hits 50 | . 11 39 Projectile 50 | . 11 39 AOE 2 | . . 2 Critical Strikes 1 | . . 1 Damage Taken 904 | . 87 817 Core 253 | . 36 217 Absorbed by Shields . | . . . Core Remaining (%) 100 | 100 . . Volleys Fired 26 | . 2 24 Largest 2 | . 2 2 Hottest 70 | . 60 70 Shots Fired 52 | . 4 48 Gun 42 | . 4 38 Cannon . | . . . Launcher 10 | . . 10 Special . | . . . Kinetic 34 | . 2 32 Thermal 8 | . 2 6 Explosive 10 | . . 10 Electromagnetic . | . . . Robot Hit Streak 24 | . 1 24 Robot Miss Streak 3 | . 3 2 Penetration Max . | . . . Secondary Targets . | . . . Shots Hit Robots 37 | . 1 36 Core Hits 17 | . . 17 Critical Kills . | . . . Critical Parts Destroyed 1 | . . 1 Critical Strikes 1 | . . 1 Destroy 1 | . . 1 Melee Attacks . | . . . Impact . | . . . Slashing . | . . . Piercing . | . . . Sneak Attacks . | . . . Combat Hostiles . | . . . Follow-up Attacks . | . . . Damage Inflicted 902 | . 17 885 Guns 413 | . 17 396 Cannons . | . . . Explosions 489 | . . 489 Melee . | . . . Ramming . | . . . Kinetic 349 | . 6 343 Thermal 64 | . 11 53 Explosive 489 | . . 489 Electromagnetic . | . . . Impact . | . . . Slashing . | . . . Piercing . | . . . Highest Corruption . | . . . Average Corruption . | . . . Corruption Purged . | . . . Corruption Blocked . | . . . Overload Shots . | . . . Overflow Damage . | . . . Projectiles . | . . . Explosions . | . . . Melee . | . . . Knockbacks . | . . . Impact . | . . . Kinetic . | . . . Secondary . | . . . Self-Inflicted Damage . | . . . Shots . | . . . Rammed . | . . . Targets Rammed . | . . . Kicked . | . . . Crushed . | . . . Highest Temperature 20 | . 20 4 Average Temperature 11 | . 15 4 Received Heat Transfer 99 | . . 99 Siege Activations . | . . . Martial Activations . | . . . Shielding Activations . | . . . Robots Disrupted . | . . . Combat Hostiles . | . . . Robots Corrupted . | . . . Combat Hostiles . | . . . Parts Fried . | . . . Impact Corruptions . | . . . Robots Melted . | . . . Combat Hostiles . | . . . Parts Melted . | . . . Heat Transferred 150 | . 25 125 Parts Sabotaged . | . . . Parts Stolen . | . . . Parts Stripped . | . . . Power Chain Reactions . | . . . Alert | -11 -10 -10 ------- Run | Yrd Mat Sub Maximum Alert Level . | . . . Low Security (%) 100 | 100 100 . Level 1 . | . . . Level 2 . | . . . Level 3 . | . . . Level 4 . | . . . Level 5 . | . . . High Security . | . . . Max Security . | . . . Peak Influence . | . . . Initial . | . . . Average . | . . . Influence Increases 150 | . . 150 Destroy 0b10 Robot/C 100 | . . 100 Allied During Kill 5 | . . 5 Lose Combat Pursuer 45 | . . 45 Influence Decreases 150 | . . 150 Time Decay 140 | . . 140 Lost Part 10 | . . 10 Squads Dispatched . | . . . Investigation . | . . . Extermination . | . . . Reinforcement . | . . . Assault . | . . . Garrison . | . . . Intercept . | . . . Searches Triggered . | . . . Construction Impeded . | . . . Haulers Reinforced . | . . . Active Scanning Responses . | . . . Cargo Convoy Interrupts . | . . . Stealth | -11 -10 -10 --------- Run | Yrd Mat Sub Distress Signals . | . . . Communications Jammed . | . . . Distress Signals . | . . . Times Spotted 20 | . 4 16 Peak Tracking Total 4 | . 4 3 Tactical Retreats 1 | . . 1 Traps | -11 -10 -10 ------- Run | Yrd Mat Sub Traps Triggered 1 | . . 1 Indirectly . | . . . Trap Hack Attempts . | . . . Triggered . | . . . Disarmed . | . . . Reprogrammed . | . . . Reused . | . . . Traps Extracted . | . . . Installed . | . . . Triggered . | . . . Most Traps Carried 1 | . . 1 Machines | -11 -10 -10 ---------- Run | Yrd Mat Sub Machines Disabled 1 | . . 1 Max in Single Turn . | . . . Machines Repaired . | . . . Machines Dismantled . | . . . Machines Sabotaged . | . . . Overloaded Fab Kills . | . . . Hacking | -11 -10 -10 --------- Run | Yrd Mat Sub Machines Accessed 3 | . . 3 Terminals . | . . . Fabricators . | . . . Repair Stations . | . . . Recycling Units . | . . . Scanalyzers . | . . . Garrison Access . | . . . Total Hacks 8 | . . 8 Successful 8 | . . 8 Failed . | . . . Catastrophic . | . . . Database Lockouts . | . . . Manual . | . . . Terminals . | . . . Fabricators . | . . . Repair Stations . | . . . Recycling Units . | . . . Scanalyzers . | . . . Garrison Access . | . . . Terminal Hacks 8 | . . 8 Record 6 | . . 6 Open Door 1 | . . 1 Release Object 1 | . . 1 Fabricator Hacks . | . . . Repair Station Hacks . | . . . Recycling Unit Hacks . | . . . Scanalyzer . | . . . Garrison Access Hacks . | . . . Unauthorized Hacks . | . . . Terminals . | . . . Fabricators . | . . . Repair Stations . | . . . Recycling Units . | . . . Scanalyzers . | . . . Garrison Access . | . . . Data Cores Recovered . | . . . Used . | . . . Hacking Detections . | . . . Full Trace Events . | . . . Feedback Events . | . . . Feedback Blocked . | . . . Robot Schematics Acquired . | . . . Robots Built . | . . . Authchips . | . . . Time . | . . . Total Robot Build Rating . | . . . Part Schematics Acquired . | . . . Parts Built . | . . . Authchips . | . . . Time . | . . . Total Part Build Rating . | . . . Parts Repaired . | . . . Time . | . . . Parts Recycled . | . . . Recycled Matter . | . . . Retrieved Matter . | . . . Retrieved Components . | . . . Parts Scanalyzed . | . . . Part Schematics Acquired . | . . . Parts Damaged . | . . . Bothacking | -11 -10 -10 ------------ Run | Yrd Mat Sub Used RIF Installer . | . . . Robots Hacked . | . . . Non-combat . | . . . Combat . | . . . Robot Hacks Applied . | . . . Relay Couplers Released . | . . . Fabnet Peak Effective % . | . . . Robots Rewired . | . . . Allies Hacked . | . . . Hacks Repelled . | . . . Allies | -11 -10 -10 -------- Run | Yrd Mat Sub Total Allies 5 | . . 5 Largest Group 3 | . . 3 Highest-Rated Group 57 | . . 57 Highest-Rated Ally 19 | . . 19 Total Orders . | . . . Ally Attacks 14 | . . 14 Total Damage 204 | . . 204 Kills 3 | . . 3 Allies Corrupted . | . . . Allies Melted . | . . . Intel | -11 -10 -10 ------- Run | Yrd Mat Sub Active Infowar (turns) 206 | . . 206 Optics 206 | . . 206 Robot Analysis Total . | . . . Derelict Logs Recovered 1 | . . 1 Drone Launches . | . . . Drone Recoveries . | . . . Exploration | -11 -10 -10 ------------- Run | Yrd Mat Sub Turns Passed 1630 | 39 106 1485 Spaces Moved 1376 | 41 110 1225 Core 24 | 24 . . Treads . | . . . Legs . | . . . Wheels 1352 | 17 110 1225 Hover . | . . . Flight . | . . . Fastest Speed 50 | 50 90 90 Average Speed 106 | 66 90 108 Slowest Speed 115 | 90 90 115 Overloaded Moves . | . . . Propulsion Burnouts . | . . . Robots Hopped . | . . . Potential Cave-ins . | . . . Cave-ins Triggered . | . . . Exploration Rate (%) 30 | 3 18 70 Regions Visited 2 Branch Regions 1 Pre-discovered Areas . | . . . Known Exits Taken . | . . . Unknown Exits Taken 2 | 1 1 . Scrap Searched 2 | . . 2 Spaces Dug . | . . . Terrain Destroyed 47 | . . 47 Melee . | . . . Projectile . | . . . AOE 47 | . . 47 Terrain Rammed . | . . . Walls Destroyed . | . . . Machines Disabled . | . . . Actions | -11 -10 -10 --------- Run | Yrd Mat Sub Total 1501 | 51 113 1337 Wait 33 | . . 33 Move 1374 | 40 109 1225 Hop . | . . . Pick Up 26 | 5 2 19 Fast Attach 5 | 2 . 3 Attach 8 | 4 . 4 Detach . | . . . Swap 11 | . . 11 Drop 17 | . . 17 Fire 26 | . 2 24 Melee . | . . . Ram . | . . . Kick . | . . . Crush . | . . . Escape Stasis . | . . . Rewire . | . . . Trap . | . . . Miscellaneous 1 | . . 1 Route ------- -11/Scrapyard -10/Materials -10/Subcaves (discovered 3 exits: [*Mat x2] / [*Rec]) History --------- Turn | Location | Event 6 | -11/Scrapyard | Discovered new exit (range 15) 40 | -11/Scrapyard | Entered Materials 115 | -10/Materials | Discovered new exit (range 5) 146 | -10/Materials | Entered Subcaves 307 | -10/Subcaves | Build established: Mutant 313 | -10/Subcaves | A swath of the cavern ceiling suddenly collapsed 387 | -10/Subcaves | Visited Clippyterm 390 | -10/Subcaves | Learned Factory fabricator intel 390 | -10/Subcaves | Learned Factory emergency access door positions 436 | -10/Subcaves | Discovered new exit (range 8) 472 | -10/Subcaves | Core integrity fell below 50% 569 | -10/Subcaves | Discovered new exit (range 5) 580 | -10/Subcaves | A swath of the cavern ceiling suddenly collapsed 733 | -10/Subcaves | Learned Materials non-interactive machine intel 860 | -10/Subcaves | Visited triangular shrine 866 | -10/Subcaves | Found Prototype Device 867 | -10/Subcaves | Identified V3-11A's Pendant 872 | -10/Subcaves | Befriended Subdweller 932 | -10/Subcaves | Shifting Twisted Machinery released Enh. Flamer 978 | -10/Subcaves | Discovered new exit (range 11) 982 | -10/Subcaves | Core integrity fell below 20% 1177 | -10/Subcaves | Released subatomizers from SUBCON Basin 1312 | -10/Subcaves | Befriended Subdweller 1317 | -10/Subcaves | Befriended Subdweller 1577 | -10/Subcaves | Befriended Subdweller 1602 | -10/Subcaves | Befriended Subdweller 1631 | -10/Subcaves | Destroyed by Piercing Trap Last Messages --------------- Delivery behind schedule, handle with care! 01176_ Dropped Sub. Power Source. 01177_ Released subatomizers from SUBCON Basin. 01274_ Acquired Sub. Monowheel. 01287_ UP-JES(O) collects matter. 01305_ Sub. Monowheel destroyed. 01312_ MT-80G(R): "SUBALICIOUS!" 01317_ 4S-3HC(R): "UGOIGO!" 01319_ Acquired Enh. Flamer. 01445_ Subatomizers dissect the Cobbler Unit. 01450_ Acquired 5 matter. 01573_ V3-11A: "I hear you, but what does it all mean?!" 01573_ V3-11A destroyed. 01573_ Sub. Power Source destroyed. 01573_ MT-80G(R) destroyed. 01577_ B6-81W(R): "YEYEYEAH!" 01602_ D3-0YC(R): "SUBSUB?" 01631_ Triggered Piercing Trap. 01631_ Spikes shoot up from the floor. Map ----- +----------------------------------------------------+ | | | | | | | ?????????????????????????????????????????????????? | | ?????????????????????????????????????????????????? | | ?????????????????????????????????????????????????? | | ?????????????????????????????????????????????????? | | ?????????????????????????????????????????????????? | | ?????????????????????????????????????????????????? | | ?????????????????????????????????????????????????? | | ?????????????????????????????????????????????????? | | ?????????????????????????????????????????????????? | | ?????????????????????????????????????????????????? | | ?????????????????????????????????????????????????? | | ?????????????????????????????????????????????????? | | ?????????????????????????????????????????????????? | | ?????????????????????????????????????????????????? | | ?????????????????????????????????????????????????? | | ?????????????????????????????###?????????????????? | | ??????????????????????##????# #?????????????????? | | ??????????????????????# #??? ??????????????????? | | ??????????????????????# ??? #??????????????????? | | ??????????????????#???# ##? #??????????????????? | | ?????????????????##" ## ## #????####??????????? | | ?????????????????"""" #????# ##?????????? | | ????????????????" """ @ #?????# ##????????? | | ?????????????????"#"###### ##????## ##???????? | | ?????????????????????????# ####### #???????? | | ?????????????????????????# # #???????? | | ?????????????????????????# ## #??????? | | ?????????????????????????# R ## #??????? | | ?????????????????????????# # #??????? | | ?????????????????????????# ### ##??????? | | ?????????????????????????## ###?####???????? | | ?????????????????????????## ##??????????????? | | ?????????????????????????# #????##?????????? | | ?????????????????????????# ##?## ##????????? | | ?????????????????????????## ;### ####?????? | | ?????????###?????????????## "" ##????? | | ?????????#"#?????????????# ###" #????? | | ????????## ##???????????## ###" "## #???? | | ????????#" "#???????????# ## "#???? #??? | | ???????## ##??????????# ### ##?????????? | | ??####?#" "#??????????## ##"" "#?????????? | | ?## #?###=###?############ ## ##????????? | | ?# ##### ##### # #" #????????? | | ?# ## # # ## "" ##???????? | | ## ### "" #???????? | | # ## ## ##?#" # #??????? | | #### ### #??#" !% ## #??????? | +----------------------------------------------------+ Best States ------------- Heat Dissipation 25 Energy Generation 15 Energy Capacity 250 Matter Stores 300 Matter Capacity 300 Sight Range 21 Terrain Scan Density 10 Armor Coverage 100 Evasion (%) 50 Item Schematics ----------------- None Robot Schematics ------------------ None Fabricated ------------ Nothing Repaired ---------- Nothing Alien Tech Used ----------------- None Achievements -------------- None Challenges ------------ None Game ------ Seed SupersonicAlloyBallwheel Manual? 0 Play Time 00:14:38 Cumulative 69.0 hours Start 2025.05.24 @ 12:22:59 End 2025.05.24 @ 12:41:11 Sessions 1 Manual Loads 0 Difficulty Rogue Special Mode None Game No. 47 Rogue 47 Adventurer 0 Explorer 0 Win Type - Total 0 Types 0/0/0/0/0/0/0/0/0/0 Lore% 50 Gallery% 41 Achievement% 37 Wizard Run 0 Options --------- Layout 1 ASCII 0 Keyboard 0 Movement Mouse Keybinds 0 Fullscreen 1 Font 24/Smallcaps Map View 50x35 Zoom Use 0% Tactical HUD 1 Map Filters NONE Filters NONE Steam 1 RUN: 07c717c1-3e53-43e8-9c4c-7b23096c9003